fUSD/lending_fUSD_20250611
["ID","MTS","AMOUNT","RATE_DAILY","PERIOD"]
[365457639,1749681052991,-490.0,0.00019342,2]
[365457640,1749681053001,-490.0,0.00019342,2]
[365457641,1749681053011,-495.45,0.00019342,2]
[365457642,1749681053020,-2501.12,0.00019342,2]
[365457643,1749681053030,-490.0,0.00019342,2]
[365457644,1749681053039,-965.76,0.00019342,2]
[365457645,1749681053048,-490.0,0.00019342,2]
[365457646,1749681053058,-1300.5,0.00019342,2]
[365457647,1749681053068,-1487.82,0.00019342,2]
[365457648,1749681053078,-1956.07,0.00019342,2]
[365457649,1749681053088,-1837.1,0.00019342,2]
[365457650,1749681053098,-500.0,0.00019342,2]
[365457651,1749681053107,-480.0,0.00019342,2]
[365457652,1749681053117,-490.0,0.00019342,2]
[365457653,1749681053128,-490.0,0.00019342,2]
[365457654,1749681053137,-490.0,0.00019342,2]
[365457655,1749681053147,-501.17,0.00019342,2]
[365457656,1749681053157,-806.15,0.00019342,2]
[365457657,1749681053166,-1121.62,0.00019342,2]
[365457658,1749681053176,-721.56,0.00019342,2]
[365457659,1749681053185,-490.0,0.00019342,2]
[365457660,1749681053195,-1928.5,0.00019342,2]
[365457661,1749681053204,-490.0,0.00019342,2]
[365457662,1749681053213,-2928.8,0.00019342,2]
[365457663,1749681053223,-490.0,0.00019342,2]
[365457664,1749681053232,-490.0,0.00019342,2]
[365457665,1749681053242,-490.0,0.00019342,2]
[365457666,1749681053252,-490.0,0.00019342,2]
[365457667,1749681053262,-490.0,0.00019342,2]
[365457668,1749681053272,-1826.73,0.00019342,2]
[365457669,1749681053282,-2307.04,0.00019342,2]
[365457670,1749681053291,-490.0,0.00019342,2]
[365457671,1749681053301,-2010.14,0.00019342,2]
[365457672,1749681053311,-490.0,0.00019342,2]
[365457673,1749681053321,-644.4,0.00019342,2]
[365457674,1749681053330,-490.0,0.00019342,2]
[365457675,1749681053340,-490.0,0.00019342,2]
[365457676,1749681053350,-490.0,0.00019342,2]
[365457677,1749681053362,-917.9,0.00019342,2]
[365457678,1749681053372,-480.0,0.00019342,2]
[365457679,1749681053382,-1409.81,0.00019342,2]
[365457680,1749681053391,-3019.45,0.00019342,2]
[365457681,1749681053401,-490.0,0.00019342,2]
[365457682,1749681053411,-490.0,0.00019342,2]
[365457683,1749681053420,-490.0,0.00019342,2]
[365457684,1749681053430,-806.37,0.00019342,2]
[365457685,1749681053440,-1023.95,0.00019342,2]
[365457686,1749681053450,-894.43,0.00019342,2]
[365457687,1749681053459,-490.0,0.00019342,2]
[365457688,1749681053468,-490.0,0.00019342,2]
[365457689,1749681053478,-490.0,0.00019342,2]
[365457690,1749681053488,-490.0,0.00019342,2]
[365457691,1749681053497,-470.0,0.00019342,2]
[365457692,1749681053507,-1493.56,0.00019342,2]
[365457693,1749681053516,-3038.48,0.00019342,2]
[365457694,1749681053526,-490.0,0.00019342,2]
[365457695,1749681053535,-490.0,0.00019342,2]
[365457696,1749681053545,-973.159661,0.00019342,2]
[365457697,1749681053555,-490.0,0.00019342,2]
[365457698,1749681053564,-490.0,0.00019342,2]
[365457699,1749681053574,-561.06180395,0.00019342,2]
[365457700,1749681053583,-744.11,0.00019342,2]
[365457701,1749681053592,-490.0,0.00019342,2]
[365457702,1749681053602,-1851.3,0.00019342,2]
[365457703,1749681053611,-490.0,0.00019342,2]
[365457704,1749681053622,-490.0,0.00019342,2]
[365457705,1749681053632,-5490.07,0.00019342,2]
[365457706,1749681053643,-490.0,0.00019342,2]
[365457707,1749681053653,-543.22,0.00019342,2]
[365457708,1749681053663,-266.47934517,0.00019342,2]
[365457709,1749681053672,-490.0,0.00019342,2]
[365457710,1749681053681,-490.0,0.00019342,2]
[365457711,1749681053690,-480.0,0.00019342,2]
[365457712,1749681053760,-490.0,0.00019342,2]
[365457713,1749681053769,-545.23,0.00019342,2]
[365457714,1749681053779,-490.0,0.00019342,2]
[365457715,1749681053788,-712.69,0.00019342,2]
[365457716,1749681053797,-215.69762739,0.00019343,2]
[365457717,1749681053806,-1037.7176603,0.00019348,2]
[365457718,1749681053815,-2983.70592984,0.00019352,2]
[365457719,1749681053825,-541.67148839,0.00019373,2]
[365457720,1749681053834,-500.0,0.00019373,2]
[365457721,1749681053844,-500.0,0.00019373,2]
[365457722,1749681053853,-500.0,0.00019373,2]
[365457723,1749681053862,-500.0,0.00019373,2]
[365457724,1749681053871,-500.0,0.00019373,2]
[365457725,1749681053882,-500.0,0.00019373,2]
[365457726,1749681053891,-553.21533485,0.00019373,2]
[365457727,1749681053900,-500.0,0.00019373,2]
[365457728,1749681053909,-500.0,0.00019373,2]
[365457729,1749681053918,-905.07050405,0.00019377,2]
[365457730,1749681053928,-632.33,0.0001938,2]
[365457731,1749681053937,-1037.7176603,0.00019383,2]
[365457732,1749681053946,-5735.87293742,0.00019397,2]
[365457733,1749681053956,-1900.0,0.000194,7]
[365457734,1749681053965,-1006.47457433,0.000194,2]
[365457735,1749681053975,-461279.16231494,0.000194,2]
[365457736,1749681053984,-266.5461983,0.00019406,2]
[365457737,1749681053993,-1037.7176603,0.00019417,2]
[365457738,1749681054002,-905.07050405,0.00019424,2]
[365457739,1749681054012,-2983.70592984,0.00019443,2]
[365457740,1749681054021,-1037.7176603,0.00019452,2]
[365457741,1749681054030,-833.29909032,0.00019452,2]
[365457742,1749681054039,-905.07050405,0.00019472,2]
[365457743,1749681054048,-1037.7176603,0.00019486,2]
[365457744,1749681054057,-171.14494735,0.00019489,2]
[365457745,1749681054066,-5735.87293742,0.00019497,2]
[365457746,1749681054076,-189848.20472935,0.000195,2]
[365457747,1749681054085,-300.0,0.000195,7]
[365457748,1749681054094,-500.0,0.00019505,2]
[365457749,1749681054103,-500.0,0.00019505,2]
[365457750,1749681054113,-500.0,0.00019505,2]
[365457751,1749681054122,-500.0,0.00019505,2]
[365457752,1749681054132,-4495.12,0.00019505,2]
[365457753,1749681054141,-490.0,0.00019506,2]
[365457754,1749681054150,-490.0,0.00019506,2]
[365457755,1749681054159,-490.0,0.00019506,2]
[365457756,1749681054169,-490.0,0.00019506,2]
[365457757,1749681054178,-490.0,0.00019506,2]
[365457758,1749681054187,-490.0,0.00019506,2]
[365457759,1749681054196,-490.0,0.00019506,2]
[365457760,1749681054205,-414.41729077,0.00019506,2]
[365457761,1749681054214,-490.0,0.00019506,2]
[365457762,1749681054223,-490.0,0.00019506,2]
[365457763,1749681054232,-490.0,0.00019506,2]
[365457764,1749681054241,-338.03321901,0.00019506,2]
[365457765,1749681054250,-490.0,0.00019506,2]
[365457766,1749681054259,-490.0,0.00019506,2]
[365457767,1749681054268,-490.0,0.00019506,2]
[365457768,1749681054277,-490.0,0.00019506,2]
[365457769,1749681054286,-490.0,0.00019506,2]
[365457770,1749681054295,-490.0,0.00019506,2]
[365457771,1749681054303,-490.0,0.00019506,2]
[365457772,1749681054312,-490.0,0.00019506,2]
[365457773,1749681054321,-490.0,0.00019506,2]
[365457774,1749681054330,-490.0,0.00019506,2]
[365457775,1749681054339,-490.0,0.00019506,2]
[365457776,1749681054348,-490.0,0.00019506,2]
[365457777,1749681054358,-490.0,0.00019506,2]
[365457778,1749681054367,-490.0,0.00019506,2]
[365457779,1749681054376,-490.0,0.00019506,2]
[365457780,1749681054385,-490.0,0.00019506,2]
[365457781,1749681054395,-490.0,0.00019506,2]
[365457782,1749681054403,-490.0,0.00019506,2]
[365457783,1749681054412,-490.0,0.00019506,2]
[365457784,1749681054422,-490.0,0.00019506,2]
[365457785,1749681054431,-490.0,0.00019506,2]
[365457786,1749681054441,-490.0,0.00019506,2]
[365457787,1749681054451,-490.0,0.00019506,2]
[365457788,1749681054460,-490.0,0.00019506,2]
[365457789,1749681054469,-490.0,0.00019506,2]
[365457790,1749681054479,-490.0,0.00019506,2]
[365457791,1749681054488,-490.0,0.00019506,2]
[365457792,1749681054497,-490.0,0.00019506,2]
[365457793,1749681054506,-490.0,0.00019506,2]
[365457794,1749681054515,-360.28,0.00019506,2]
[365457795,1749681054524,-490.0,0.00019506,2]
[365457796,1749681054533,-490.0,0.00019506,2]
[365457797,1749681054541,-490.0,0.00019506,2]
[365457798,1749681054550,-490.0,0.00019506,2]
[365457799,1749681054559,-490.0,0.00019506,2]
[365457800,1749681054568,-490.0,0.00019506,2]
[365457801,1749681054577,-490.0,0.00019506,2]
[365457802,1749681054586,-490.0,0.00019506,2]
[365457803,1749681054595,-490.0,0.00019506,2]
[365457804,1749681054605,-577.0,0.00019506,2]
[365457805,1749681054614,-490.0,0.00019506,2]
[365457806,1749681054623,-470.0,0.00019506,2]
[365457807,1749681054632,-490.0,0.00019506,2]
[365457808,1749681054641,-490.0,0.00019506,2]
[365457809,1749681054650,-490.0,0.00019506,2]
[365457810,1749681054660,-920.56,0.00019506,2]
[365457811,1749681054669,-633.85,0.00019506,2]
[365457812,1749681054678,-490.0,0.00019506,2]
[365457813,1749681054687,-490.0,0.00019506,2]
[365457814,1749681054696,-490.0,0.00019506,2]
[365457815,1749681054705,-490.0,0.00019506,2]
[365457816,1749681054714,-516.4,0.00019506,2]
[365457817,1749681054723,-490.0,0.00019506,2]
[365457818,1749681054732,-490.0,0.00019506,2]
[365457819,1749681054741,-490.0,0.00019506,2]
[365457820,1749681054750,-490.0,0.00019506,2]
[365457821,1749681054760,-490.0,0.00019506,2]
[365457822,1749681054769,-541.73,0.00019506,2]
[365457823,1749681054778,-743.12,0.00019506,2]
[365457824,1749681054787,-490.0,0.00019506,2]
[365457825,1749681054797,-490.0,0.00019506,2]
[365457826,1749681054806,-490.0,0.00019506,2]
[365457827,1749681054815,-698.94,0.00019506,2]
[365457828,1749681054824,-490.0,0.00019506,2]
[365457829,1749681054833,-490.0,0.00019506,2]
[365457830,1749681054842,-490.0,0.00019506,2]
[365457831,1749681054851,-490.0,0.00019506,2]
[365457832,1749681054860,-490.0,0.00019506,2]
[365457833,1749681054869,-490.0,0.00019506,2]
[365457834,1749681054879,-490.0,0.00019506,2]
[365457835,1749681054888,-490.0,0.00019506,2]
[365457836,1749681054898,-490.0,0.00019506,2]
[365457837,1749681054908,-420.0,0.00019506,2]
[365457838,1749681054917,-564.97,0.00019506,2]
[365457839,1749681054926,-490.0,0.00019506,2]
[365457840,1749681054935,-490.0,0.00019506,2]
[365457841,1749681054944,-490.0,0.00019506,2]
[365457842,1749681054953,-490.0,0.00019506,2]
[365457843,1749681054962,-1059.95,0.00019506,2]
[365457844,1749681054972,-490.0,0.00019506,2]
[365457845,1749681054981,-490.0,0.00019506,2]
[365457846,1749681054990,-490.0,0.00019506,2]
[365457847,1749681054999,-490.0,0.00019506,2]
[365457848,1749681055008,-490.0,0.00019506,2]
[365457849,1749681055018,-490.0,0.00019506,2]
[365457850,1749681055027,-490.0,0.00019506,2]
[365457851,1749681055036,-490.0,0.00019506,2]
[365457852,1749681055045,-490.0,0.00019506,2]
[365457853,1749681055055,-490.0,0.00019506,2]
[365457854,1749681055064,-490.0,0.00019506,2]
[365457855,1749681055074,-490.0,0.00019506,2]
[365457856,1749681055084,-490.0,0.00019506,2]
[365457857,1749681055093,-490.0,0.00019506,2]
[365457858,1749681055103,-1170.28,0.00019506,2]
[365457859,1749681055112,-490.0,0.00019506,2]
[365457860,1749681055121,-490.0,0.00019506,2]
[365457861,1749681055131,-556.35,0.00019506,2]
[365457862,1749681055140,-490.0,0.00019506,2]
[365457863,1749681055149,-490.0,0.00019506,2]
[365457864,1749681055158,-490.0,0.00019506,2]
[365457865,1749681055167,-490.0,0.00019506,2]
[365457866,1749681055177,-490.0,0.00019506,2]
[365457867,1749681055186,-430.0,0.00019506,2]
[365457868,1749681055194,-837.36,0.00019506,2]
[365457869,1749681055203,-618.71,0.00019506,2]
[365457870,1749681055213,-559.78,0.00019506,2]
[365457871,1749681055222,-677.05,0.00019506,2]
[365457872,1749681055231,-490.0,0.00019506,2]
[365457873,1749681055241,-490.0,0.00019506,2]
[365457874,1749681055249,-490.0,0.00019506,2]
[365457875,1749681055259,-490.0,0.00019506,2]
[365457876,1749681055268,-490.0,0.00019506,2]
[365457877,1749681055277,-490.0,0.00019506,2]
[365457878,1749681055286,-748.31,0.00019506,2]
[365457879,1749681055295,-490.0,0.00019506,2]
[365457880,1749681055304,-609.06,0.00019506,2]
[365457881,1749681055312,-490.0,0.00019506,2]
[365457882,1749681055322,-490.0,0.00019506,2]
[365457883,1749681055331,-706.85,0.00019506,2]
[365457884,1749681055339,-683.53,0.00019506,2]
[365457885,1749681055348,-490.0,0.00019506,2]
[365457886,1749681055360,-490.0,0.00019506,2]
[365457887,1749681055370,-440.0,0.00019506,2]
[365457888,1749681055379,-490.0,0.00019506,2]
[365457889,1749681055389,-490.0,0.00019506,2]
[365457890,1749681055399,-490.0,0.00019506,2]
[365457891,1749681055407,-490.0,0.00019506,2]
[365457892,1749681055416,-490.0,0.00019506,2]
[365457893,1749681055425,-490.0,0.00019506,2]
[365457894,1749681055435,-490.0,0.00019506,2]
[365457895,1749681055443,-1045.94,0.00019506,2]
[365457896,1749681055452,-490.0,0.00019506,2]
[365457897,1749681055461,-490.0,0.00019506,2]
[365457898,1749681055470,-490.0,0.00019506,2]
[365457899,1749681055479,-569.23,0.00019506,2]
[365457900,1749681055489,-1109.77,0.00019506,2]
[365457901,1749681055497,-664.08,0.00019506,2]
[365457902,1749681055506,-490.0,0.00019506,2]
[365457903,1749681055515,-490.0,0.00019506,2]
[365457904,1749681055526,-307.03,0.00019506,2]
[365457905,1749681055535,-490.0,0.00019506,2]
[365457906,1749681055544,-490.0,0.00019506,2]
[365457907,1749681055553,-490.0,0.00019506,2]
[365457908,1749681055563,-490.0,0.00019506,2]
[365457909,1749681055573,-1027.39,0.00019506,2]
[365457910,1749681055582,-711.21,0.00019506,2]
[365457911,1749681055592,-490.0,0.00019506,2]
[365457912,1749681055601,-802.65,0.00019506,2]
[365457913,1749681055610,-490.0,0.00019506,2]
[365457914,1749681055620,-490.0,0.00019506,2]
[365457915,1749681055630,-574.1,0.00019506,2]
[365457916,1749681055641,-714.44,0.00019506,2]
[365457917,1749681055650,-490.0,0.00019506,2]
[365457918,1749681055659,-490.0,0.00019506,2]
[365457919,1749681055668,-490.0,0.00019506,2]
[365457920,1749681055678,-802.13,0.00019506,2]
[365457921,1749681055687,-676.83,0.00019506,2]
[365457922,1749681055697,-490.0,0.00019506,2]
[365457923,1749681055706,-741.95,0.00019506,2]
[365457924,1749681055715,-490.0,0.00019506,2]
[365457925,1749681055725,-506.68,0.00019506,2]
[365457926,1749681055734,-343.39996701,0.00019506,2]
[365457927,1749681055744,-1639.27,0.00019506,2]
[365457928,1749681055753,-490.0,0.00019506,2]
[365457929,1749681055763,-688.28,0.00019506,2]
[365457930,1749681055771,-490.0,0.00019506,2]
[365457931,1749681055781,-490.0,0.00019506,2]
[365457932,1749681055790,-490.0,0.00019506,2]
[365457933,1749681055799,-683.16,0.00019506,2]
[365457934,1749681055808,-490.0,0.00019506,2]
[365457935,1749681055817,-727.68,0.00019506,2]
[365457936,1749681055826,-831.91,0.00019506,2]
[365457937,1749681055836,-490.0,0.00019506,2]
[365457938,1749681055845,-490.0,0.00019506,2]
[365457939,1749681055855,-490.0,0.00019506,2]
[365457940,1749681055865,-490.0,0.00019506,2]
[365457941,1749681055874,-490.0,0.00019506,2]
[365457942,1749681055885,-627.0,0.00019506,2]
[365457943,1749681055895,-549.26,0.00019506,2]
[365457944,1749681055904,-490.0,0.00019506,2]
[365457945,1749681055913,-490.0,0.00019506,2]
[365457946,1749681055923,-469.21221367,0.00019506,2]
[365457947,1749681055931,-634.08,0.00019506,2]
[365457948,1749681055940,-490.0,0.00019506,2]
[365457949,1749681055949,-490.0,0.00019506,2]
[365457950,1749681055959,-785.32,0.00019506,2]
[365457951,1749681055969,-549.18,0.00019506,2]
[365457952,1749681055979,-490.0,0.00019506,2]
[365457953,1749681055988,-490.0,0.00019506,2]
[365457954,1749681055998,-490.0,0.00019506,2]
[365457955,1749681056007,-1067.72,0.00019506,2]
[365457956,1749681056017,-490.0,0.00019506,2]
[365457957,1749681056026,-1091.48,0.00019506,2]
[365457958,1749681056036,-490.0,0.00019506,2]
[365457959,1749681056046,-490.0,0.00019506,2]
[365457960,1749681056055,-490.0,0.00019506,2]
[365457961,1749681056065,-490.0,0.00019506,2]
[365457962,1749681056074,-3015.97,0.00019506,2]
[365457963,1749681056083,-765.91,0.00019506,2]
[365457964,1749681056093,-631.38,0.00019506,2]
[365457965,1749681056103,-711.29,0.00019506,2]
[365457966,1749681056113,-417.18,0.00019506,2]
[365457967,1749681056122,-606.94,0.00019506,2]
[365457968,1749681056134,-490.0,0.00019506,2]
[365457969,1749681056143,-480.0,0.00019506,2]
[365457970,1749681056153,-1000.0,0.00019506,2]
[365457971,1749681056162,-490.0,0.00019506,2]
[365457972,1749681056171,-490.0,0.00019506,2]
[365457973,1749681056181,-860.284671,0.00019506,2]
[365457974,1749681056190,-2556.87,0.00019506,2]
[365457975,1749681056200,-490.0,0.00019506,2]
[365457976,1749681056209,-756.45,0.00019506,2]
[365457977,1749681056219,-682.16,0.00019506,2]
[365457978,1749681056228,-667.62,0.00019506,2]
[365457979,1749681056238,-1003.6,0.00019506,2]
[365457980,1749681056248,-725.13,0.00019506,2]
[365457981,1749681056257,-490.0,0.00019506,2]
[365457982,1749681056267,-490.0,0.00019506,2]
[365457983,1749681056276,-991.3,0.00019506,2]
[365457984,1749681056285,-644.68,0.00019506,2]
[365457985,1749681056295,-714.86,0.00019506,2]
[365457986,1749681056304,-769.78,0.00019506,2]
[365457987,1749681056314,-490.0,0.00019506,2]
[365457988,1749681056323,-1288.02,0.00019506,2]
[365457989,1749681056333,-3040.97,0.00019506,2]
[365457990,1749681056342,-490.0,0.00019506,2]
[365457991,1749681056352,-1041.13,0.00019506,2]
[365457992,1749681056365,-831.35,0.00019506,2]
[365457993,1749681056375,-645.9,0.00019506,2]
[365457994,1749681056387,-3039.27,0.00019506,2]
[365457995,1749681056396,-490.0,0.00019506,2]
[365457996,1749681056408,-490.0,0.00019506,2]
[365457997,1749681056418,-7683.51,0.00019506,2]
[365457998,1749681056429,-363.78442438,0.00019506,2]
[365457999,1749681056440,-748.07,0.00019506,2]
[365458000,1749681056450,-1414.43,0.00019506,2]
[365458001,1749681056460,-793.8,0.00019506,2]
[365458002,1749681056469,-490.0,0.00019506,2]
[365458003,1749681056478,-490.0,0.00019506,2]
[365458004,1749681056488,-852.43,0.00019506,2]
[365458005,1749681056498,-480.0,0.00019506,2]
[365458006,1749681056508,-490.0,0.00019506,2]
[365458007,1749681056518,-1711.26,0.00019506,2]
[365458008,1749681056529,-1775.86,0.00019506,2]
[365458009,1749681056539,-1484.9,0.00019506,2]
[365458010,1749681056549,-886.63,0.00019506,2]
[365458011,1749681056559,-553.95,0.00019506,2]
[365458012,1749681056568,-490.0,0.00019506,2]
[365458013,1749681056577,-458.63043133,0.00019506,2]
[365458014,1749681056588,-490.0,0.00019506,2]
[365458015,1749681056597,-719.87,0.00019506,2]
[365458016,1749681056607,-490.0,0.00019506,2]
[365458017,1749681056618,-3435.38,0.00019506,2]
[365458018,1749681056627,-490.0,0.00019506,2]
[365458019,1749681056638,-1020.83,0.00019506,2]
[365458020,1749681056647,-637.51,0.00019506,2]
[365458021,1749681056657,-490.0,0.00019506,2]
[365458022,1749681056666,-490.0,0.00019506,2]
[365458023,1749681056676,-490.0,0.00019506,2]
[365458024,1749681056685,-546.55048237,0.00019506,2]
[365458025,1749681056695,-490.0,0.00019506,2]
[365458026,1749681056704,-490.0,0.00019506,2]
[365458027,1749681056713,-490.0,0.00019506,2]
[365458028,1749681056723,-3565.37,0.00019506,2]
[365458029,1749681056733,-490.0,0.00019506,2]
[365458030,1749681056742,-591.24,0.00019506,2]
[365458031,1749681056752,-490.0,0.00019506,2]
[365458032,1749681056761,-1777.51,0.00019506,2]
[365458033,1749681056771,-490.0,0.00019506,2]
[365458034,1749681056780,-490.0,0.00019506,2]
[365458035,1749681056789,-490.0,0.00019506,2]
[365458036,1749681056799,-679.41,0.00019506,2]
[365458037,1749681056808,-490.0,0.00019506,2]
[365458038,1749681056818,-1199.01,0.00019506,2]
[365458039,1749681056827,-1168.01,0.00019506,2]
[365458040,1749681056836,-587.65,0.00019506,2]
[365458041,1749681056846,-490.0,0.00019506,2]
[365458042,1749681056855,-490.0,0.00019506,2]
[365458043,1749681056865,-1041.81,0.00019506,2]
[365458044,1749681056875,-490.0,0.00019506,2]
[365458045,1749681056886,-855.8,0.00019506,2]
[365458046,1749681056895,-490.0,0.00019506,2]
[365458047,1749681056905,-490.0,0.00019506,2]
[365458048,1749681056914,-2234.57,0.00019506,2]
[365458049,1749681056923,-683.01,0.00019506,2]
[365458050,1749681056933,-619.27,0.00019506,2]
[365458051,1749681056943,-5150.97,0.00019506,2]
[365458052,1749681056953,-490.0,0.00019506,2]
[365458053,1749681056963,-1497.1,0.00019506,2]
[365458054,1749681056972,-850.37,0.00019506,2]
[365458055,1749681056982,-1059.59,0.00019506,2]
[365458056,1749681056992,-490.0,0.00019506,2]
[365458057,1749681057002,-1397.52,0.00019506,2]
[365458058,1749681057012,-490.0,0.00019506,2]
[365458059,1749681057022,-548.84,0.00019506,2]
[365458060,1749681057032,-490.0,0.00019506,2]
[365458061,1749681057042,-828.39,0.00019506,2]
[365458062,1749681057052,-490.0,0.00019506,2]
[365458063,1749681057062,-490.0,0.00019506,2]
[365458064,1749681057073,-1213.57,0.00019506,2]
[365458065,1749681057084,-490.0,0.00019506,2]
[365458066,1749681057094,-490.0,0.00019506,2]
[365458067,1749681057103,-490.0,0.00019506,2]
[365458068,1749681057114,-490.0,0.00019506,2]
[365458069,1749681057124,-422.12269586,0.00019506,2]
[365458070,1749681057135,-490.0,0.00019506,2]
[365458071,1749681057147,-565.48,0.00019506,2]
[365458072,1749681057157,-1132.46,0.00019506,2]
[365458073,1749681057167,-490.0,0.00019506,2]
[365458074,1749681057178,-490.0,0.00019506,2]
[365458075,1749681057188,-680.41,0.00019506,2]
[365458076,1749681057198,-490.0,0.00019506,2]
[365458077,1749681057207,-1500.61,0.00019506,2]
[365458078,1749681057217,-490.0,0.00019506,2]
[365458079,1749681057226,-490.0,0.00019506,2]
[365458080,1749681057236,-490.0,0.00019506,2]
[365458081,1749681057245,-490.0,0.00019506,2]
[365458082,1749681057255,-490.0,0.00019506,2]
[365458083,1749681057268,-490.0,0.00019506,2]
[365458084,1749681057278,-490.0,0.00019506,2]
[365458085,1749681057288,-490.0,0.00019506,2]
[365458086,1749681057298,-490.0,0.00019506,2]
[365458087,1749681057307,-490.0,0.00019506,2]
[365458088,1749681057316,-1529.53,0.00019506,2]
[365458089,1749681057326,-490.0,0.00019506,2]
[365458090,1749681057336,-884.29,0.00019506,2]
[365458091,1749681057346,-490.0,0.00019506,2]
[365458092,1749681057358,-490.0,0.00019506,2]
[365458093,1749681057368,-490.0,0.00019506,2]
[365458094,1749681057378,-490.0,0.00019506,2]
[365458095,1749681057389,-854.08,0.00019506,2]
[365458096,1749681057400,-1688.77,0.00019506,2]
[365458097,1749681057410,-11601.35,0.00019506,2]
[365458098,1749681057420,-1204.32,0.00019506,2]
[365458099,1749681057430,-170.49955775,0.00019506,2]
[365458100,1749681057440,-490.0,0.00019506,2]
[365458101,1749681057451,-490.0,0.00019506,2]
[365458102,1749681057461,-490.0,0.00019506,2]
[365458103,1749681057471,-490.0,0.00019506,2]
[365458104,1749681057480,-490.0,0.00019506,2]
[365458105,1749681057490,-490.0,0.00019506,2]
[365458106,1749681057499,-490.0,0.00019506,2]
[365458107,1749681057509,-490.0,0.00019506,2]
[365458108,1749681057519,-490.0,0.00019506,2]
[365458109,1749681057528,-7216.4,0.00019506,2]
[365458110,1749681057538,-968.99,0.00019506,2]
[365458111,1749681057547,-490.0,0.00019506,2]
[365458112,1749681057557,-1726.29,0.00019506,2]
[365458113,1749681057567,-491.08401485,0.00019506,2]
[365458114,1749681057577,-3362.35,0.00019506,2]
[365458115,1749681057587,-490.0,0.00019506,2]
[365458116,1749681057597,-490.0,0.00019506,2]
[365458117,1749681057607,-490.0,0.00019506,2]
[365458118,1749681057617,-495.45,0.00019506,2]
[365458119,1749681057627,-2501.12,0.00019506,2]
[365458120,1749681057637,-490.0,0.00019506,2]
[365458121,1749681057646,-965.76,0.00019506,2]
[365458122,1749681057656,-490.0,0.00019506,2]
[365458123,1749681057666,-1300.5,0.00019506,2]
[365458124,1749681057676,-1487.82,0.00019506,2]
[365458125,1749681057685,-1956.07,0.00019506,2]
[365458126,1749681057694,-1837.1,0.00019506,2]
[365458127,1749681057704,-490.0,0.00019506,2]
[365458128,1749681057714,-490.0,0.00019506,2]
[365458129,1749681057723,-490.0,0.00019506,2]
[365458130,1749681057732,-806.15,0.00019506,2]
[365458131,1749681057742,-1121.62,0.00019506,2]
[365458132,1749681057751,-721.56,0.00019506,2]
[365458133,1749681057762,-490.0,0.00019506,2]
[365458134,1749681057771,-1928.5,0.00019506,2]
[365458135,1749681057781,-490.0,0.00019506,2]
[365458136,1749681057790,-2928.8,0.00019506,2]
[365458137,1749681057800,-490.0,0.00019506,2]
[365458138,1749681057810,-490.0,0.00019506,2]